Workbook

Sheet הוצאות
B3: תקציב אירוע עבור [שם האירוע]
H4: הוצאות
H6: משוערת | I6: בפועל
C7: סך הכל הוצאות | H7: =SUM(D14,D22,D28,D35,H14,H22,H27) -> ₪ 1,145.00 | I7: =SUM(E14,E22,E28,E35,I14,I22,I27) -> ₪ 395.00
C9: אתר | D9: משוערת | E9: בפועל | G9: כיבוד | H9: משוערת | I9: בפועל
C10: שכירת חדר ואולם | D10: ₪ 500.00 | E10: ₪ 250.00 | G10: מזון
C11: צוות באתר | D11: ₪ 400.00 | E11: ₪ 50.00 | G11: משקאות
C12: ציוד | G12: מפות
C13: שולחנות וכיסאות | G13: צוות ודמי שירות
C14: סה"כ | D14: =SUBTOTAL(109,טבלה1[משוערת]) -> ₪ 900.00 | E14: =SUBTOTAL(109,טבלה1[בפועל]) -> ₪ 300.00 | G14: סה"כ | H14: =SUBTOTAL(109,טבלה5[משוערת]) -> ₪ 0.00 | I14: =SUBTOTAL(109,טבלה5[בפועל]) -> ₪ 0.00
C16: קישוטים | D16: משוערת | E16: בפועל | G16: תוכנית | H16: משוערת | I16: בפועל
C17: פרחים | D17: ₪ 200.00 | E17: ₪ 50.00 | G17: הופעה
C18: נרות | G18: מרצים
C19: תאורה | G19: נסיעות
C20: בלונים | G20: מלון
C21: קישוטי נייר | G21: אחר
C22: סה"כ | D22: =SUBTOTAL(109,טבלה2[משוערת]) -> ₪ 200.00 | E22: =SUBTOTAL(109,טבלה2[בפועל]) -> ₪ 50.00 | G22: סה"כ | H22: =SUBTOTAL(109,טבלה6[משוערת]) -> ₪ 0.00 | I22: =SUBTOTAL(109,טבלה6[בפועל]) -> ₪ 0.00
C24: פרסום | D24: משוערת | E24: בפועל | G24: פרסים | H24: משוערת | I24: בפועל
C25: גרפיקה | D25: ₪ 45.00 | E25: ₪ 45.00 | G25: גביעים/מדליות
C26: צילום/הדפסה | G26: מתנות
C27: דמי דואר | G27: סה"כ | H27: =SUBTOTAL(109,טבלה7[משוערת]) -> ₪ 0.00 | I27: =SUBTOTAL(109,טבלה7[בפועל]) -> ₪ 0.00
C28: סה"כ | D28: =SUBTOTAL(109,טבלה3[משוערת]) -> ₪ 45.00 | E28: =SUBTOTAL(109,טבלה3[בפועל]) -> ₪ 45.00
C30: שונות | D30: משוערת | E30: בפועל
C31: טלפון
C32: תחבורה
C33: מוצרי נייר
C34: שירותי פקס
C35: סה"כ | D35: =SUBTOTAL(109,טבלה4[משוערת]) -> ₪ 0.00 | E35: =SUBTOTAL(109,טבלה4[בפועל]) -> ₪ 0.00

Sheet הכנסות
B3: תקציב אירוע עבור [שם האירוע]
F4: הכנסות
F6: משוערת | G6: בפועל
B7: סך הכל הכנסות | F7: =SUM(F14,F21,F28,F36) -> ₪ 1,936.00 | G7: =SUM(G14,G21,G28,G36) -> ₪ 1,831.00
B9: כרטיסי כניסה
B10: משוערת | C10: בפועל | F10: משוערת | G10: בפועל
B11: 300 | C11: 278 | D11: מבוגרים | E11: ₪ 5.00 | F11: =B11*E11 -> ₪ 1,500.00 | G11: =C11*E11 -> ₪ 1,390.00
B12: 197 | C12: 195 | D12: ילדים | E12: ₪ 2.00 | F12: =B12*E12 -> ₪ 394.00 | G12: =C12*E12 -> ₪ 390.00
B13: 42 | C13: 51 | D13: אחר | E13: ₪ 1.00 | F13: =B13*E13 -> ₪ 42.00 | G13: =C13*E13 -> ₪ 51.00
F14: =SUM(F11:F13) -> ₪ 1,936.00 | G14: =SUM(G11:G13) -> ₪ 1,831.00
B16: פרסומות בתוכנייה
B17: משוערת | C17: בפועל | F17: משוערת | G17: בפועל
D18: כריכות | F18: =B18*E18 -> ₪ 0.00 | G18: =C18*E18 -> ₪ 0.00
D19: חצי עמוד | F19: =B19*E19 -> ₪ 0.00 | G19: =C19*E19 -> ₪ 0.00
D20: רבע עמוד | F20: =B20*E20 -> ₪ 0.00 | G20: =C20*E20 -> ₪ 0.00
F21: =SUM(F18:F20) -> ₪ 0.00 | G21: =SUM(G18:G20) -> ₪ 0.00
B23: מציגים/מוכרים
B24: משוערת | C24: בפועל | F24: משוערת | G24: בפועל
D25: דוכנים גדולים | F25: =B25*E25 -> ₪ 0.00 | G25: =C25*E25 -> ₪ 0.00
D26: דוכנים בינוניים | F26: =B26*E26 -> ₪ 0.00 | G26: =C26*E26 -> ₪ 0.00
D27: דוכנים קטנים | F27: =B27*E27 -> ₪ 0.00 | G27: =C27*E27 -> ₪ 0.00
F28: =SUM(F25:F27) -> ₪ 0.00 | G28: =SUM(G25:G27) -> ₪ 0.00
B30: מכירת פריטים
B31: משוערת | C31: בפועל | F31: משוערת | G31: בפועל
D32: פריטים | F32: =B32*E32 -> ₪ 0.00 | G32: =C32*E32 -> ₪ 0.00
D33: פריטים | F33: =B33*E33 -> ₪ 0.00 | G33: =C33*E33 -> ₪ 0.00
D34: פריטים | F34: =B34*E34 -> ₪ 0.00 | G34: =C34*E34 -> ₪ 0.00
D35: פריטים | F35: =B35*E35 -> ₪ 0.00 | G35: =C35*E35 -> ₪ 0.00
F36: =SUM(F32:F35) -> ₪ 0.00 | G36: =SUM(G32:G35) -> ₪ 0.00

Sheet סיכום
B3: תקציב אירוע עבור [שם האירוע]
F4: סיכום רווח והפסד
F6: משוערת | G6: בפועל
B7: סה"כ הכנסות | F7: =הכנסות!F7 -> ₪ 1,936.00 | G7: =הכנסות!G7 -> ₪ 1,831.00
B8: סה"כ הוצאות | F8: =הוצאות!H7 -> ₪ 1,145.00 | G8: =הוצאות!I7 -> ₪ 395.00
B9: סך הכל רווח (או הפסד) | F9: =F7-F8 -> ₪ 791.00 | G9: =G7-G8 -> ₪ 1,436.00
